fUSD/lending_fUSD_20241227
["ID","MTS","AMOUNT","RATE_DAILY","PERIOD"]
[346764419,1735271432548,-455.53,0.00010667,2]
[346764420,1735271432565,-1000.0,0.00010771,2]
[346764421,1735271432579,-369.18,0.00010781,2]
[346764422,1735271432594,-250.0,0.00010782,2]
[346764423,1735271432610,-250.0,0.00010927,2]
[346764424,1735271432625,-250.0,0.00010936,2]
[346764425,1735271432640,-300.0,0.00010958,2]
[346764426,1735271432654,-500.0,0.00010959,2]
[346764427,1735271432668,-1842.78815419,0.00010959,2]
[346764428,1735271432687,-157.21184581,0.00010959,2]
[346764429,1735271432705,-200.0,0.00010959,2]
[346764430,1735271432719,-145.88815419,0.00011022,2]
[346764431,1735271432737,-10.3837022,0.00011022,2]
[346764432,1735271432752,-153.73957561,0.00011022,2]
[346764433,1735271432767,-152.76,0.00011049,2]
[346764434,1735271432782,-152.95,0.00011049,2]
[346764435,1735271432798,-960.62,0.00011049,2]
[346764436,1735271432814,-501.0,0.00011123,2]
[346764439,1735271432829,-150.18,0.00011161,2]
[346764441,1735271432846,-152.46,0.00011161,2]
[346764444,1735271432862,-151.46,0.00011161,2]
[346764446,1735271432875,-151.49,0.00011161,2]
[346764448,1735271432885,-150.97,0.00011161,2]
[346764450,1735271432894,-152.84,0.00011161,2]
[346764452,1735271432905,-152.06,0.00011161,2]
[346764454,1735271432915,-129.45171267,0.00011162,2]
[346764456,1735271432927,-23.10828733,0.00011162,2]
[346764477,1735271433197,-151.95,0.00011162,2]
[346764482,1735271433244,-150.32,0.00011162,2]
[346764484,1735271433258,-151.77,0.00011162,2]
[346764486,1735271433269,-152.25,0.00011162,2]
[346764487,1735271433279,-150.16,0.00011162,2]
[346764488,1735271433289,-152.56,0.00011162,2]
[346764489,1735271433299,-152.55,0.00011162,2]
[346764490,1735271433309,-151.19,0.00011162,2]
[346764491,1735271433318,-659.41626137,0.00011201,2]
[346764492,1735271433330,-269.18373863,0.00011201,2]
[346764493,1735271433340,-592.446,0.0001139,2]
[346764494,1735271433351,-131.21026137,0.0001139,2]
[346764495,1735271433363,-19.59973863,0.0001139,2]
[346764496,1735271433372,-151.82,0.0001139,2]
[346764497,1735271433382,-1000.0,0.000115,4]
[346764498,1735271433392,-5433.16060711,0.0001151,2]
[346764499,1735271433407,-999.1096,0.0001151,2]
[346764502,1735271438293,-2564.76499984,0.0001151,2]
[346764503,1735271438305,-618.49444355,0.0001151,2]
[346764504,1735271438316,-1277.4703495,0.0001151,2]
[346764505,1735271438326,-2100.0,0.000116,4]
[346764506,1735271438335,-387.3617592,0.000117,4]
[346764507,1735271438347,-1287.78386026,0.000117,4]
[346764508,1735271438360,-1524.85438054,0.000117,4]
[346764509,1735271438370,-527.52226768,0.00011782,2]
[346764510,1735271438379,-3318.62628334,0.000118,4]
[346764511,1735271438392,-881.37371666,0.000118,4]
[346764512,1735271438405,-10563.549,0.00011881,2]
[346764513,1735271438414,-5655.3064,0.00011882,2]
[346764514,1735271438423,-186.23867854,0.00011883,2]
[346764515,1735271438433,-5300.0,0.000119,4]
[346764516,1735271438443,-1955.14,0.0001193,2]
[346764517,1735271438454,-872.74,0.0001193,2]
[346764518,1735271438463,-3903.0,0.0001198,2]
[346764519,1735271438472,-781.23,0.0001198,2]
[346764520,1735271438483,-5803.04,0.0001198,2]
[346764521,1735271438492,-1034.56,0.0001198,2]
[346764522,1735271438501,-11430.5,0.0001198,2]
[346764523,1735271438511,-3968.79,0.0001198,2]
[346764524,1735271438519,-8781.37,0.0001198,2]
[346764525,1735271438528,-2611.93,0.0001198,2]
[346764526,1735271438537,-7172.18,0.0001198,2]
[346764527,1735271438546,-764.58,0.0001198,2]
[346764528,1735271438555,-500.0,0.0001198,2]
[346764529,1735271438564,-500.0,0.0001198,2]
[346764530,1735271438573,-918.98,0.0001198,2]
[346764531,1735271438582,-500.0,0.0001198,2]
[346764532,1735271438591,-2082.42,0.00011981,2]
[346764533,1735271438600,-1944.88,0.00011981,2]
[346764534,1735271438609,-762.97,0.00011981,2]
[346764535,1735271438619,-501.62933542,0.00011981,2]
[346764536,1735271438629,-500.0,0.00011981,2]
[346764537,1735271438638,-500.0,0.00011981,2]
[346764538,1735271438648,-500.0,0.00011981,2]
[346764539,1735271438657,-501.40096854,0.00011981,2]
[346764540,1735271438666,-500.0,0.00011981,2]
[346764541,1735271438676,-1264.23,0.00011981,2]
[346764542,1735271438685,-626.96,0.00011981,2]
[346764543,1735271438695,-457.3898499,0.00011981,2]
[346764544,1735271438705,-500.0,0.00011981,2]
[346764545,1735271438715,-500.0,0.00011981,2]
[346764546,1735271438724,-500.0,0.00011981,2]
[346764547,1735271438733,-500.0,0.00011981,2]
[346764548,1735271438743,-500.0,0.00011981,2]
[346764549,1735271438752,-500.0,0.00011981,2]
[346764550,1735271438762,-500.0,0.00011981,2]
[346764551,1735271438772,-2026.86,0.00011981,2]
[346764552,1735271438781,-500.0,0.00011981,2]
[346764553,1735271438791,-1503.3,0.00011981,2]
[346764554,1735271438800,-500.0,0.00011981,2]
[346764555,1735271438810,-500.0,0.00011981,2]
[346764556,1735271438819,-1380.81,0.00011981,2]
[346764557,1735271438828,-500.0,0.00011981,2]
[346764558,1735271438837,-501.44104386,0.00011981,2]
[346764559,1735271438846,-1318.95,0.00011981,2]
[346764560,1735271438856,-500.0,0.00011981,2]
[346764561,1735271438865,-500.0,0.00011981,2]
[346764562,1735271438875,-992.85,0.00011981,2]
[346764563,1735271438884,-500.0,0.00011981,2]
[346764564,1735271438893,-500.0,0.00011981,2]
[346764565,1735271438902,-500.0,0.00011981,2]
[346764566,1735271438912,-849.89,0.00011981,2]
[346764567,1735271438921,-500.0,0.00011981,2]
[346764568,1735271438930,-463.11947415,0.00011981,2]
[346764569,1735271438940,-615.94,0.00011981,2]
[346764570,1735271438950,-500.0,0.00011981,2]
[346764571,1735271438959,-2847.99,0.00011981,2]
[346764572,1735271438968,-500.0,0.00011981,2]
[346764573,1735271438977,-836.57,0.00011981,2]
[346764574,1735271438986,-500.0,0.00011981,2]
[346764575,1735271438995,-500.0,0.00011981,2]
[346764576,1735271439004,-500.0,0.00011981,2]
[346764577,1735271439013,-500.0,0.00011981,2]
[346764578,1735271439023,-509.79607825,0.00011981,2]
[346764579,1735271439032,-576.42,0.00011981,2]
[346764580,1735271439042,-1014.85,0.00011981,2]
[346764581,1735271439051,-500.0,0.00011981,2]
[346764582,1735271439061,-2243.97,0.00011981,2]
[346764583,1735271439070,-500.0,0.00011981,2]
[346764584,1735271439079,-728.6,0.00011981,2]
[346764585,1735271439088,-594.0,0.00011981,2]
[346764586,1735271439098,-500.0,0.00011981,2]
[346764587,1735271439107,-500.0,0.00011981,2]
[346764588,1735271439116,-1070.23,0.00011981,2]
[346764589,1735271439125,-500.0,0.00011981,2]
[346764590,1735271439134,-1908.8,0.00011981,2]
[346764591,1735271439143,-500.0,0.00011981,2]
[346764592,1735271439152,-1618.34,0.00011981,2]
[346764593,1735271439161,-213.35595108,0.00011981,2]
[346764594,1735271439171,-500.0,0.00011981,2]
[346764595,1735271439180,-500.0,0.00011981,2]
[346764596,1735271439190,-500.0,0.00011981,2]
[346764597,1735271439200,-500.0,0.00011981,2]
[346764598,1735271439209,-1708.98,0.00011981,2]
[346764599,1735271439219,-1816.94,0.00011981,2]
[346764600,1735271439228,-500.0,0.00011981,2]
[346764601,1735271439238,-258.03582132,0.00011981,2]
[346764602,1735271439247,-500.0,0.00011981,2]
[346764603,1735271439256,-197.23568133,0.00011981,2]
[346764604,1735271439266,-623.46,0.00011981,2]
[346764605,1735271439275,-500.0,0.00011981,2]
[346764606,1735271439286,-500.0,0.00011981,2]
[346764607,1735271439296,-500.0,0.00011981,2]
[346764608,1735271439305,-652.15,0.00011981,2]
[346764609,1735271439313,-500.0,0.00011981,2]
[346764610,1735271439323,-505.16136814,0.00011981,2]
[346764611,1735271439333,-3804.58,0.00011981,2]
[346764612,1735271439343,-500.0,0.00011981,2]
[346764613,1735271439353,-500.0,0.00011981,2]
[346764614,1735271439362,-500.0,0.00011981,2]
[346764615,1735271439371,-500.0,0.00011981,2]
[346764616,1735271439381,-500.0,0.00011981,2]
[346764617,1735271439390,-500.0,0.00011981,2]
[346764618,1735271439399,-500.0,0.00011981,2]
[346764619,1735271439413,-578.6,0.00011981,2]
[346764620,1735271439422,-500.0,0.00011981,2]
[346764621,1735271439431,-500.0,0.00011981,2]
[346764622,1735271439440,-500.0,0.00011981,2]
[346764623,1735271439450,-500.0,0.00011981,2]
[346764624,1735271439460,-830.5,0.00011981,2]
[346764625,1735271439470,-500.0,0.00011981,2]
[346764626,1735271439481,-422.02926292,0.00011981,2]
[346764627,1735271439491,-2165.79,0.00011981,2]
[346764628,1735271439500,-500.0,0.00011981,2]
[346764629,1735271439510,-1004.59,0.00011981,2]
[346764630,1735271439519,-3267.86,0.00011981,2]
[346764631,1735271439528,-1160.08,0.00011981,2]
[346764632,1735271439538,-500.0,0.00011981,2]
[346764633,1735271439547,-918.13,0.00011981,2]
[346764634,1735271439557,-4187.38797268,0.00011981,2]
[346764635,1735271439572,-1782.54202732,0.00011981,2]
[346764636,1735271439582,-500.0,0.00011981,2]
[346764637,1735271439591,-711.89541337,0.00011981,2]
[346764638,1735271440342,-601.74458663,0.00011981,2]
[346764639,1735271440352,-175.38461226,0.00011981,2]
[346764640,1735271440364,-283.7760206,0.00011981,2]
[346764641,1735271440375,-365.59936714,0.00011981,2]
[346764642,1735271440385,-500.0,0.00011981,2]
[346764643,1735271440395,-148.30813286,0.00011981,2]
[346764644,1735271440704,-500.0,0.0001198,2]
[346764645,1735271440714,-351.69186714,0.00011981,2]
[346764646,1735271440725,-500.0,0.00011981,2]
[346764647,1735271440735,-500.0,0.00011981,2]
[346764648,1735271440744,-500.0,0.00011981,2]
[346764649,1735271440754,-2128.58,0.00011981,2]
[346764650,1735271440763,-343.59339134,0.00011981,2]
[346764651,1735271440773,-1851.51,0.00011981,2]
[346764652,1735271440782,-500.0,0.00011981,2]
[346764653,1735271440792,-500.0,0.00011981,2]
[346764654,1735271440801,-500.0,0.00011981,2]
[346764655,1735271440810,-567.89,0.00011981,2]
[346764656,1735271440820,-500.0,0.00011981,2]
[346764657,1735271440829,-498.86405571,0.00011981,2]
[346764658,1735271440839,-500.0,0.00011981,2]
[346764659,1735271440849,-688.56,0.00011981,2]
[346764660,1735271440859,-750.01,0.00011981,2]
[346764661,1735271440868,-556.11,0.00011981,2]
[346764662,1735271440878,-972.24,0.00011981,2]
[346764663,1735271440888,-724.75658906,0.00011981,2]
[346764667,1735271443123,-553.15397697,0.0001198,2]
[346764668,1735271443135,-332.66602303,0.0001198,2]
[346764669,1735271443144,-46.83398197,0.0001198,2]
[346764670,1735271443156,-312.65249985,0.0001198,2]
[346764671,1735271443373,-1230.09497467,0.0001198,2]
[346764672,1735271443385,-274.25854351,0.0001198,2]
[346764673,1735271443396,-2781.09341094,0.00011981,2]
[346764674,1735271443409,-537.0,0.00011981,2]
[346764675,1735271443421,-527.95,0.00011981,2]
[346764676,1735271443431,-500.0,0.00011981,2]
[346764677,1735271443440,-500.0,0.00011981,2]
[346764678,1735271443451,-836.51,0.00011981,2]
[346764679,1735271443461,-447.47835747,0.00011981,2]
[346764680,1735271443470,-987.74,0.00011981,2]
[346764681,1735271443482,-500.0,0.00011981,2]
[346764682,1735271443491,-500.0,0.00011981,2]
[346764683,1735271443502,-500.0,0.00011981,2]
[346764684,1735271443511,-1663.83,0.00011981,2]
[346764685,1735271443521,-657.33,0.00011981,2]
[346764686,1735271443530,-2482.23388425,0.00011981,2]
[346764687,1735271443542,-1129.60781656,0.00011981,2]
[346764688,1735271443553,-2326.1897417,0.00011981,2]
[346764705,1735271446328,-375.68855749,0.00011981,2]
[346764706,1735271446338,-370.10540971,0.00011981,2]
[346764707,1735271446349,-133.03853586,0.00011981,2]
[346764708,1735271446359,-500.0,0.00011981,2]
[346764709,1735271446368,-564.78,0.00011981,2]
[346764710,1735271446377,-500.0,0.00011981,2]
[346764711,1735271446387,-171.29358263,0.00011981,2]
[346764712,1735271446396,-500.0,0.00011981,2]
[346764713,1735271446408,-711.55,0.00011981,2]
[346764714,1735271446418,-500.0,0.00011981,2]
[346764715,1735271446428,-500.0,0.00011981,2]
[346764716,1735271446437,-3296.5,0.00011981,2]
[346764717,1735271446447,-500.0,0.00011981,2]
[346764718,1735271446457,-500.0,0.00011981,2]
[346764719,1735271446472,-500.0,0.00011981,2]
[346764720,1735271446485,-773.18,0.00011981,2]
[346764721,1735271446494,-500.0,0.00011981,2]
[346764722,1735271446503,-500.0,0.00011981,2]
[346764723,1735271446513,-500.0,0.00011981,2]
[346764724,1735271446523,-500.0,0.00011981,2]
[346764725,1735271446532,-500.0,0.00011981,2]
[346764726,1735271446542,-500.0,0.00011981,2]
[346764727,1735271446552,-937.87,0.00011981,2]
[346764728,1735271446562,-500.0,0.00011981,2]
[346764729,1735271446572,-813.2,0.00011981,2]
[346764730,1735271446581,-2192.35,0.00011981,2]
[346764731,1735271446591,-500.0,0.00011981,2]
[346764732,1735271446600,-1027.51,0.00011981,2]
[346764733,1735271446610,-500.0,0.00011981,2]
[346764734,1735271446621,-2342.17,0.00011981,2]
[346764735,1735271446630,-500.0,0.00011981,2]
[346764736,1735271446639,-500.0,0.00011981,2]
[346764737,1735271446650,-589.25,0.00011981,2]
[346764738,1735271446659,-500.0,0.00011981,2]
[346764739,1735271446669,-886.71,0.00011981,2]
[346764740,1735271446679,-1339.76,0.00011981,2]
[346764741,1735271446689,-500.0,0.00011981,2]
[346764743,1735271446698,-2676.15,0.00011981,2]
[346764744,1735271446712,-500.0,0.00011981,2]
[346764745,1735271446722,-1118.39,0.00011981,2]
[346764746,1735271446732,-505.67748538,0.00011981,2]
[346764747,1735271446742,-856.91,0.00011981,2]
[346764748,1735271446752,-500.0,0.00011981,2]
[346764749,1735271446762,-500.0,0.00011981,2]
[346764750,1735271446772,-568.21,0.00011981,2]
[346764751,1735271446782,-791.8,0.00011981,2]
[346764752,1735271446791,-500.0,0.00011981,2]
[346764753,1735271446801,-602.25941392,0.00011981,2]
[346764754,1735271446811,-4485.16,0.00011981,2]
[346764755,1735271446821,-500.0,0.00011981,2]
[346764756,1735271446830,-500.0,0.00011981,2]
[346764757,1735271446839,-500.0,0.00011981,2]
[346764758,1735271446849,-500.0,0.00011981,2]
[346764759,1735271446859,-500.0,0.00011981,2]
[346764760,1735271446868,-500.0,0.00011981,2]
[346764761,1735271446878,-526.02,0.00011981,2]
[346764762,1735271446887,-594.41,0.00011981,2]
[346764763,1735271446897,-918.51,0.00011981,2]
[346764764,1735271446907,-500.0,0.00011981,2]
[346764765,1735271447096,-840.69,0.00011981,2]
[346764766,1735271447117,-500.0,0.00011981,2]
[346764767,1735271447127,-500.0,0.00011981,2]
[346764768,1735271447136,-960.15,0.00011981,2]
[346764769,1735271447146,-500.0,0.00011981,2]
[346764770,1735271447155,-1683.01,0.00011981,2]
[346764771,1735271447166,-20130.92,0.00011981,2]
[346764772,1735271447175,-500.0,0.00011981,2]
[346764773,1735271447186,-1835.79,0.00011981,2]
[346764774,1735271447196,-500.0,0.00011981,2]
[346764775,1735271447205,-200.49015658,0.00011981,2]
[346764776,1735271447217,-500.0,0.00011981,2]
[346764777,1735271447226,-3038.43,0.00011981,2]
[346764778,1735271447236,-500.0,0.00011981,2]
[346764779,1735271447246,-5966.91,0.00011981,2]
[346764780,1735271447255,-509.98477465,0.00011981,2]
[346764781,1735271447265,-500.0,0.00011981,2]
[346764782,1735271447274,-155.506852,0.00011981,2]
[346764783,1735271447284,-500.0,0.00011981,2]
[346764784,1735271447293,-2768.979859,0.00011981,2]
[346764785,1735271447303,-982.34,0.00011981,2]
[346764786,1735271447313,-156.473705,0.00011981,2]
[346764787,1735271447323,-5816.5,0.00011981,2]
[346764788,1735271447332,-500.0,0.00011981,2]
[346764789,1735271447342,-500.0,0.00011981,2]
[346764790,1735271447352,-2785.42,0.00011981,2]
[346764791,1735271447362,-2188.496923,0.00011981,2]
[346764792,1735271447371,-500.0,0.00011981,2]
[346764793,1735271447382,-1388.91,0.00011981,2]
[346764794,1735271447392,-500.0,0.00011981,2]
[346764795,1735271447403,-4922.91,0.00011981,2]
[346764796,1735271447414,-863.83,0.00011981,2]
[346764797,1735271447423,-500.0,0.00011981,2]
[346764798,1735271447432,-500.0,0.00011981,2]
[346764799,1735271447442,-2221.52,0.00011981,2]
[346764800,1735271447453,-500.0,0.00011981,2]
[346764801,1735271447464,-500.0,0.00011981,2]
[346764802,1735271447473,-500.0,0.00011981,2]
[346764803,1735271447485,-1769.5,0.00011981,2]
[346764804,1735271447495,-1526.89,0.00011981,2]
[346764805,1735271447504,-500.0,0.00011981,2]
[346764806,1735271447514,-1316.09,0.00011981,2]
[346764807,1735271447524,-711.72,0.00011981,2]
[346764808,1735271447533,-500.0,0.00011981,2]
[346764809,1735271447543,-1706.41,0.00011981,2]
[346764810,1735271447552,-1588.5,0.00011981,2]
[346764811,1735271447561,-500.0,0.00011981,2]
[346764812,1735271447571,-343.4111438,0.00011981,2]
[346764813,1735271447581,-500.0,0.00011981,2]
[346764814,1735271447590,-500.0,0.00011981,2]
[346764815,1735271447600,-456.62972128,0.00011981,2]
[346764816,1735271447610,-500.0,0.00011981,2]
[346764817,1735271447619,-1584.86,0.00011981,2]
[346764818,1735271447629,-500.0,0.00011981,2]
[346764819,1735271447639,-3198.29,0.00011981,2]
[346764820,1735271447649,-500.0,0.00011981,2]
[346764821,1735271447659,-500.0,0.00011981,2]
[346764822,1735271447668,-500.0,0.00011981,2]
[346764823,1735271447677,-500.0,0.00011981,2]
[346764824,1735271447687,-1152.22,0.00011981,2]
[346764825,1735271447696,-972.54,0.00011981,2]
[346764826,1735271447706,-2644.59,0.00011981,2]
[346764827,1735271447717,-1495.44,0.00011981,2]
[346764828,1735271447727,-1299.4,0.00011981,2]
[346764829,1735271447737,-955.83,0.00011981,2]
[346764830,1735271447747,-500.0,0.00011981,2]
[346764831,1735271447756,-500.0,0.00011981,2]
[346764832,1735271447765,-1959.27,0.00011981,2]
[346764833,1735271447775,-500.0,0.00011981,2]
[346764834,1735271447785,-895.27,0.00011981,2]
[346764835,1735271447795,-500.0,0.00011981,2]
[346764836,1735271447804,-500.0,0.00011981,2]
[346764837,1735271447814,-500.0,0.00011981,2]
[346764838,1735271447823,-2704.43,0.00011981,2]
[346764839,1735271447833,-1443.53,0.00011981,2]
[346764840,1735271447843,-500.0,0.00011981,2]
[346764841,1735271447853,-227.76125085,0.00011981,2]
[346764842,1735271447862,-500.0,0.00011981,2]
[346764843,1735271447872,-6343.99,0.00011981,2]
[346764844,1735271447881,-1156.94,0.00011981,2]
[346764845,1735271447890,-500.0,0.00011981,2]
[346764846,1735271447900,-500.0,0.00011981,2]
[346764847,1735271447909,-715.76,0.00011981,2]
[346764848,1735271447919,-500.0,0.00011981,2]
[346764849,1735271447929,-500.0,0.00011981,2]
[346764850,1735271447938,-500.0,0.00011981,2]
[346764851,1735271447948,-500.0,0.00011981,2]
[346764852,1735271447957,-859.44,0.00011981,2]
[346764853,1735271447968,-2026.51,0.00011981,2]
[346764854,1735271447977,-2026.51,0.00011981,2]
[346764855,1735271447987,-500.0,0.00011981,2]
[346764856,1735271447996,-1447.55,0.00011981,2]
[346764857,1735271448006,-500.0,0.00011981,2]
[346764858,1735271448015,-500.0,0.00011981,2]
[346764859,1735271448024,-653.43,0.00011981,2]
[346764860,1735271448034,-500.0,0.00011981,2]
[346764861,1735271448043,-8123.36,0.00011981,2]
[346764862,1735271448053,-972.72,0.00011981,2]
[346764863,1735271448062,-9409.63,0.00011981,2]
[346764864,1735271448072,-500.0,0.00011981,2]
[346764865,1735271448081,-500.0,0.00011981,2]
[346764866,1735271448091,-3097.59,0.00011981,2]
[346764867,1735271448101,-500.0,0.00011981,2]
[346764868,1735271448111,-505.88108781,0.00011981,2]
[346764869,1735271448121,-500.0,0.00011981,2]
[346764870,1735271448131,-2103.81,0.00011981,2]
[346764871,1735271448140,-15316.04,0.00011981,2]
[346764872,1735271448150,-500.0,0.00011981,2]
[346764873,1735271448160,-500.0,0.00011981,2]
[346764874,1735271448170,-500.0,0.00011981,2]
[346764875,1735271448179,-981.96,0.00011981,2]
[346764876,1735271448189,-2315.16,0.00011981,2]
[346764877,1735271448199,-500.0,0.00011981,2]
[346764878,1735271448208,-1634.25,0.00011981,2]
[346764879,1735271448220,-375.9068109,0.00011981,2]
[346764880,1735271448230,-500.0,0.00011981,2]
[346764881,1735271448239,-500.0,0.00011981,2]
[346764882,1735271448249,-11004.56991585,0.00011981,2]
[346764883,1735271448765,-3798.56008415,0.00011981,2]
[346764884,1735271448775,-500.0,0.00011981,2]
[346764885,1735271448785,-764.18,0.00011981,2]
[346764886,1735271448795,-1005.65,0.00011981,2]
[346764887,1735271448805,-3788.16,0.00011981,2]
[346764888,1735271448815,-500.0,0.00011981,2]
[346764889,1735271448825,-2013.68,0.00011981,2]
[346764890,1735271448835,-500.0,0.00011981,2]
[346764891,1735271448845,-500.0,0.00011981,2]
[346764892,1735271448855,-4668.44024699,0.00011981,2]
[346764893,1735271448865,-151.05,0.00011981,2]
[346764894,1735271448875,-150.15,0.00011981,2]
[346764895,1735271448884,-231759.50457373,0.00011982,2]
[346764896,1735271448896,-15603.63615199,0.00011982,2]
[346764897,1735271448906,-640.09,0.00011982,2]
[346764898,1735271448916,-505.45,0.00011982,2]
[346764899,1735271448926,-500.0,0.00011982,2]
[346764900,1735271448935,-500.0,0.00011982,2]
[346764901,1735271448945,-500.0,0.00011982,2]
[346764902,1735271448955,-500.0,0.00011982,2]
[346764903,1735271448966,-500.0,0.00011982,2]
[346764904,1735271448976,-500.0,0.00011982,2]
[346764905,1735271448986,-500.0,0.00011982,2]
[346764906,1735271448996,-500.0,0.00011982,2]
[346764907,1735271449006,-500.0,0.00011982,2]
[346764908,1735271449016,-500.0,0.00011982,2]
[346764909,1735271449026,-1009.47,0.00011982,2]
[346764910,1735271449036,-617.28,0.00011982,2]
[346764911,1735271449046,-500.0,0.00011982,2]
[346764912,1735271449057,-894.9,0.00011982,2]
[346764913,1735271449067,-497.95609856,0.00011982,2]
[346764914,1735271449076,-959.89,0.00011982,2]
[346764915,1735271449086,-713.15,0.00011982,2]
[346764916,1735271449095,-500.0,0.00011982,2]
[346764917,1735271449294,-500.22,0.00011982,2]
[346764918,1735271449304,-500.0,0.00011982,2]
[346764919,1735271449314,-540.52,0.00011982,2]
[346764920,1735271449324,-500.0,0.00011982,2]
[346764921,1735271449334,-537.79,0.00011982,2]
[346764922,1735271449344,-500.0,0.00011982,2]
[346764923,1735271449354,-500.0,0.00011982,2]
[346764924,1735271449363,-510.97662274,0.00011982,2]
[346764925,1735271449373,-518.13086047,0.00011982,2]
[346764926,1735271449382,-500.0,0.00011982,2]
[346764927,1735271449392,-500.0,0.00011982,2]
[346764928,1735271449403,-500.0,0.00011982,2]
[346764929,1735271449414,-500.0,0.00011982,2]
[346764930,1735271449424,-500.0,0.00011982,2]
[346764931,1735271449433,-500.0,0.00011982,2]
[346764932,1735271449443,-500.0,0.00011982,2]
[346764933,1735271449454,-524.45163657,0.00011982,2]
[346764934,1735271449464,-500.0,0.00011982,2]
[346764935,1735271449475,-500.0,0.00011982,2]
[346764936,1735271449485,-500.0,0.00011982,2]
[346764937,1735271449495,-676.6,0.00011982,2]
[346764938,1735271449505,-500.0,0.00011982,2]
[346764939,1735271449515,-486.81481362,0.00011982,2]
[346764940,1735271449525,-520.72,0.00011982,2]
[346764941,1735271449535,-500.0,0.00011982,2]
[346764942,1735271449546,-500.0,0.00011982,2]
[346764943,1735271449555,-500.0,0.00011982,2]
[346764944,1735271449564,-500.0,0.00011982,2]
[346764945,1735271449574,-500.0,0.00011982,2]
[346764946,1735271449584,-537.93,0.00011982,2]
[346764947,1735271449593,-668.23,0.00011982,2]
[346764948,1735271449603,-500.0,0.00011982,2]
[346764949,1735271449614,-500.0,0.00011982,2]
[346764950,1735271449624,-500.0,0.00011982,2]
[346764951,1735271449633,-884.98,0.00011982,2]
[346764952,1735271449643,-500.0,0.00011982,2]
[346764953,1735271449653,-500.0,0.00011982,2]
[346764954,1735271449662,-500.0,0.00011982,2]
[346764955,1735271449672,-559.36,0.00011982,2]
[346764956,1735271449681,-500.0,0.00011982,2]
[346764957,1735271449691,-376.95775011,0.00011982,2]
[346764958,1735271449701,-500.0,0.00011982,2]
[346764959,1735271449711,-500.0,0.00011982,2]
[346764960,1735271449720,-718.45,0.00011982,2]
[346764961,1735271449729,-512.99476539,0.00011982,2]
[346764962,1735271449739,-500.0,0.00011982,2]
[346764963,1735271449749,-500.0,0.00011982,2]
[346764964,1735271449760,-1004.02,0.00011982,2]
[346764965,1735271449770,-500.0,0.00011982,2]
[346764966,1735271449779,-843.25,0.00011982,2]
[346764967,1735271449789,-500.0,0.00011982,2]
[346764968,1735271449798,-377.91437449,0.00011982,2]
[346764969,1735271449809,-500.0,0.00011982,2]
[346764970,1735271449819,-582.26,0.00011982,2]
[346764971,1735271449829,-663.44,0.00011982,2]
[346764972,1735271449839,-500.0,0.00011982,2]
[346764973,1735271449849,-503.92194767,0.00011982,2]
[346764974,1735271449858,-500.0,0.00011982,2]
[346764975,1735271449868,-500.0,0.00011982,2]
[346764976,1735271449877,-500.0,0.00011982,2]
[346764977,1735271449887,-500.0,0.00011982,2]